bitfinex/quotes_SOLUSD_20240725
["timestamp","ask_amount","ask_price","bid_price","bid_amount"]
[1721896875324,14.91,170.6,170.57,21.17237224]
[1721896875524,14.91,170.6,170.57,86.17237224]
[1721896875997,14.91,170.62,170.57,85.0]
[1721896876198,14.91,170.62,170.57,105.0]
[1721896876807,14.91,170.62,170.57,119.91]
[1721896877203,14.91,170.62,170.57,105.0]
[1721896877411,14.91,170.61,170.57,105.0]
[1721896878310,14.91,170.6,170.57,65.0]
[1721896878514,59.64,170.64,170.57,65.0]
[1721896878842,59.64,170.64,170.57,20.0]
[1721896879038,15.7013353,170.58,170.57,20.0]
[1721896879321,15.7013353,170.58,170.55,20.0]
[1721896879707,15.7013353,170.58,170.55,40.0]
[1721896879903,15.7013353,170.58,170.55,20.0]
[1721896880523,15.7013353,170.58,170.54,20.0]
[1721896880824,15.7013353,170.58,170.55,65.0]
[1721896881025,0.7913353,170.58,170.56,20.0]
[1721896881217,0.7913353,170.58,170.57,20.0]
[1721896881414,0.7913353,170.58,170.56,20.0]
[1721896882432,0.7913353,170.58,170.57,20.0]
[1721896883220,0.7913353,170.58,170.55,65.0]
[1721896883423,15.7013353,170.58,170.55,20.0]
[1721896883608,0.7913353,170.58,170.55,20.0]
[1721896883913,0.7913353,170.58,170.56,65.0]
[1721896884112,0.7913353,170.58,170.57,34.91]
[1721896884319,0.7913353,170.58,170.57,79.91]
[1721896887813,0.7913353,170.58,170.57,20.0]
[1721896888029,0.7913353,170.58,170.57,34.91]
[1721896888835,0.7913353,170.58,170.57,54.91]
[1721896889213,22.7363,170.72,170.64,20.0]
[1721896889426,22.7363,170.72,170.64,56.08174702]
[1721896889627,14.91,170.7,170.66,20.0]
[1721896889831,22.7363,170.72,170.66,20.0]
[1721896890142,22.7363,170.72,170.66,40.0]
[1721896890440,22.7363,170.72,170.67,45.0]
[1721896890441,14.91,170.7,170.67,45.0]
[1721896890641,14.91,170.7,170.68,20.0]
[1721896891140,14.91,170.71,170.68,20.0]
[1721896891312,16.5828,170.72,170.68,40.0]
[1721896891518,14.91,170.71,170.68,40.0]
[1721896891947,14.91,170.71,170.68,20.0]
[1721896892112,0.7913353,170.75,170.68,20.0]
[1721896892316,14.91,170.72,170.68,20.0]
[1721896892519,14.91,170.72,170.69,20.0]
[1721896893240,0.7913353,170.75,170.69,20.0]
[1721896893447,14.91,170.72,170.7,20.0]
[1721896894425,0.7913353,170.75,170.68,20.0]
[1721896894728,14.91,170.72,170.68,20.0]
[1721896895028,14.91,170.72,170.69,45.0]
[1721896895420,14.91,170.72,170.68,20.0]
[1721896897156,14.91,170.72,170.69,1.171489]
[1721896897323,14.91,170.72,170.68,20.0]
[1721896898539,0.7913353,170.75,170.71,20.0]
[1721896898843,14.91,170.72,170.68,20.0]
[1721896899141,14.91,170.71,170.68,20.0]
[1721896899718,14.91,170.71,170.7,20.0]
[1721896900130,14.91,170.72,170.7,65.0]
[1721896900345,14.91,170.71,170.7,65.0]
[1721896900946,14.91,170.71,170.7,20.0]
[1721896901450,14.91,170.72,170.7,20.0]
[1721896901951,14.91,170.71,170.7,20.0]
[1721896902320,14.91,170.72,170.7,40.0]
[1721896902520,14.91,170.73,170.7,40.0]
[1721896902720,0.7913353,170.75,170.7,40.0]
[1721896902945,0.7913353,170.75,170.71,1.17137551]
[1721896903152,0.7913353,170.75,170.72,20.0]
[1721896903329,0.7913353,170.75,170.72,40.0]
[1721896903650,14.91,170.74,170.72,40.0]
[1721896903851,14.91,170.74,170.72,20.0]
[1721896904025,0.7913353,170.75,170.72,20.0]
[1721896904221,14.91,170.74,170.7,20.0]
[1721896904627,14.91,170.73,170.7,20.0]
[1721896905048,14.91,170.72,170.7,20.0]
[1721896905241,14.91,170.73,170.7,40.0]
[1721896905442,14.91,170.72,170.68,40.0]
[1721896906856,14.91,170.7,170.66,40.0]
[1721896907155,14.91,170.69,170.66,40.0]
[1721896907447,15.7013353,170.75,170.71,20.0]
[1721896907648,15.7013353,170.75,170.71,40.0]
[1721896908647,14.91,170.74,170.71,40.0]
[1721896909530,15.7013353,170.75,170.71,40.0]
[1721896910455,14.91,170.74,170.71,40.0]
[1721896910640,14.91,170.74,170.69,40.0]
[1721896910949,0.7913353,170.75,170.7,20.0]
[1721896911152,0.7913353,170.75,170.74,14.91]
[1721896911341,6.0826,170.83,170.77,40.0]
[1721896911546,16.2247,170.84,170.79,40.0]
[1721896911726,6.5354,170.87,170.79,40.0]
[1721896911926,14.91,170.86,170.83,20.0]
[1721896912733,16.1522,170.88,170.83,20.0]
[1721896913047,14.91,170.86,170.83,20.0]
[1721896913246,14.91,170.87,170.84,20.0]
[1721896913438,14.91,170.87,170.85,20.0]
[1721896913636,7.2656353,170.92,170.85,20.0]
[1721896914034,14.91,170.87,170.85,20.0]
[1721896914234,7.2656353,170.92,170.84,20.0]
[1721896914235,14.91,170.86,170.84,20.0]
[1721896914468,14.91,170.85,170.84,20.0]
[1721896915031,65.4913,170.91,170.81,40.0]
[1721896915443,14.91,170.85,170.81,40.0]
[1721896915932,14.91,170.83,170.79,41.1705761]
[1721896916154,14.91,170.83,170.81,20.0]
[1721896916553,7.2656353,170.92,170.84,20.0]
[1721896916756,14.91,170.88,170.84,20.0]
[1721896917234,14.91,170.86,170.82,20.0]
[1721896917438,14.91,170.86,170.83,20.0]
[1721896917633,14.91,170.86,170.84,20.0]
[1721896917850,14.91,170.85,170.82,20.0]
[1721896918165,14.91,170.85,170.81,20.0]
[1721896918371,14.91,170.85,170.82,40.0]
[1721896919232,14.91,170.84,170.8,20.0]
[1721896919433,14.91,170.83,170.8,40.0]
[1721896919743,14.91,170.85,170.82,20.0]
[1721896920365,14.91,170.86,170.82,20.0]
[1721896920558,14.91,170.86,170.84,20.0]
[1721896920759,7.2656353,170.92,170.84,20.0]
[1721896921060,14.91,170.86,170.82,20.0]
[1721896921250,14.91,170.86,170.83,20.0]
[1721896921656,14.91,170.84,170.82,20.0]
[1721896922346,14.91,170.86,170.83,20.0]
[1721896922740,7.2656353,170.92,170.85,54.91]
[1721896922934,7.2656353,170.92,170.87,20.0]
[1721896922935,14.91,170.9,170.87,20.0]
[1721896923139,14.91,170.9,170.86,45.0]
[1721896923140,14.91,170.89,170.85,40.0]
[1721896924064,14.91,170.87,170.85,20.0]
[1721896924637,14.91,170.86,170.83,40.0]
[1721896925138,0.7913353,170.92,170.84,1.17050642]
[1721896925453,14.91,170.9,170.86,20.0]
[1721896925653,14.91,170.9,170.88,20.0]
[1721896925855,14.91,170.9,170.86,20.0]
[1721896926349,0.7913353,170.92,170.88,20.0]
[1721896928252,0.7913353,170.92,170.87,45.0]
[1721896928551,0.7913353,170.92,170.86,20.0]
[1721896930173,0.7913353,170.92,170.85,20.0]
[1721896930376,0.7913353,170.92,170.84,40.0]
[1721896930678,0.7913353,170.92,170.85,20.0]
[1721896931181,0.7913353,170.92,170.86,20.0]
[1721896932851,0.7913353,170.92,170.86,40.0]
[1721896933477,0.7913353,170.92,170.86,20.0]
[1721896934157,0.7913353,170.92,170.85,20.0]
[1721896934364,0.7913353,170.92,170.84,20.0]
[1721896934867,0.7913353,170.92,170.85,45.0]
[1721896935050,0.7913353,170.92,170.86,20.0]
[1721896935859,0.7913353,170.92,170.85,45.0]
[1721896936075,0.7913353,170.92,170.84,20.0]
[1721896938273,0.7913353,170.92,170.85,20.0]
[1721896938671,0.7913353,170.92,170.86,20.0]
[1721896939059,0.7913353,170.92,170.85,20.0]
[1721896939771,0.7913353,170.92,170.86,20.0]
[1721896940868,0.7913353,170.92,170.85,40.0]
[1721896941962,0.7913353,170.92,170.85,20.0]
[1721896942576,0.7913353,170.92,170.88,20.0]
[1721896943462,0.7913353,170.92,170.85,68.02454281]
[1721896944483,0.7913353,170.92,170.85,48.02454281]
[1721896944687,0.7913353,170.92,170.87,20.0]
[1721896944883,0.7913353,170.92,170.89,20.0]
[1721896945988,0.7913353,170.92,170.89,21.17009419]
[1721896946424,0.7913353,170.92,170.89,20.0]
[1721896946893,0.7913353,170.92,170.91,20.0]
[1721896947463,0.7913353,170.92,170.9,45.0]
[1721896947678,0.7913353,170.92,170.89,40.0]
[1721896948084,0.7913353,170.92,170.9,45.0]
[1721896948292,15.6013353,170.92,170.91,20.0]
[1721896949069,0.7913353,170.92,170.91,86.17004158]
[1721896950187,0.7913353,170.92,170.91,99.81]
[1721896950375,0.7913353,170.92,170.91,105.0]
[1721896950578,0.7913353,170.92,170.91,119.81]
[1721896950775,0.7913353,170.92,170.91,105.0]
[1721896950976,0.7913353,170.92,170.91,106.16982857]
[1721896951173,0.7913353,170.92,170.91,105.0]
[1721896951675,14.81,170.96,170.94,40.0]
[1721896951875,14.81,170.96,170.94,20.0]
[1721896952077,14.81,170.95,170.92,20.0]
[1721896952291,14.81,170.94,170.92,20.0]
[1721896952966,59.24,171.0,170.94,20.0]
[1721896952967,14.81,170.95,170.94,20.0]
[1721896953369,14.81,170.95,170.92,20.0]
[1721896953370,14.81,170.95,170.92,40.0]
[1721896953588,14.81,170.94,170.92,20.0]
[1721896953783,14.81,170.94,170.93,45.0]
[1721896953969,14.81,170.94,170.92,20.0]
[1721896954501,14.81,170.94,170.92,40.0]
[1721896954995,14.81,170.94,170.92,20.0]
[1721896955173,5.8481,171.0,170.92,20.0]
[1721896955376,14.81,170.94,170.92,20.0]
[1721896955790,59.24,171.0,170.94,20.0]
[1721896956003,14.81,170.95,170.94,20.0]
[1721896956171,14.81,170.95,170.94,65.0]
[1721896956492,14.81,170.95,170.94,20.0]
[1721896957194,14.81,170.95,170.91,20.0]
[1721896957495,14.81,170.92,170.89,20.0]
[1721896957667,14.81,170.91,170.89,20.0]
[1721896958282,14.81,170.92,170.89,20.0]
[1721896958681,15.7541,171.02,170.91,20.0]
[1721896958998,14.81,170.92,170.91,20.0]
[1721896959496,14.81,170.92,170.89,20.0]
[1721896959696,5.8485,170.99,170.91,20.0]
[1721896959994,14.81,170.94,170.93,20.0]
[1721896961788,14.81,170.94,170.91,20.0]
[1721896961995,14.81,170.93,170.92,45.0]
[1721896962691,14.81,170.93,170.87,14.81]
[1721896962692,14.81,170.93,170.87,20.0]
[1721896962992,14.81,170.88,170.87,20.0]
[1721896965092,14.81,170.88,170.85,8.02454281]
[1721896965093,14.81,170.88,170.82,27.26794362]
[1721896965291,59.24,170.91,170.82,27.26794362]
[1721896965292,14.81,170.85,170.82,27.26794362]
[1721896965687,14.81,170.86,170.82,27.26794362]
[1721896966594,14.81,170.86,170.83,20.0]
[1721896966897,14.81,170.86,170.84,20.0]
[1721896967078,14.81,170.88,170.86,20.0]
[1721896967287,14.81,170.89,170.86,20.0]
[1721896968403,14.81,170.89,170.87,45.0]
[1721896969000,15.3192,170.95,170.87,45.0]
[1721896969301,14.81,170.9,170.88,20.0]
[1721896969900,14.81,170.91,170.89,45.0]
[1721896970300,14.81,170.9,170.87,40.0]
[1721896970503,14.81,170.9,170.85,34.81]
[1721896970809,14.81,170.87,170.85,20.0]
[1721896971089,14.81,170.89,170.86,20.0]
[1721896971472,14.81,170.88,170.86,20.0]
[1721896971681,14.81,170.88,170.85,20.0]
[1721896971984,14.81,170.87,170.84,20.0]
[1721896972676,14.81,170.87,170.83,20.0]
[1721896973001,14.81,170.86,170.83,20.0]
[1721896973306,14.81,170.85,170.83,20.0]
[1721896973780,14.81,170.87,170.84,65.0]
[1721896973983,14.81,170.87,170.84,20.0]
[1721896974389,14.81,170.86,170.84,20.0]
[1721896974699,14.81,170.86,170.83,40.0]
[1721896975274,5.85,170.94,170.83,40.0]
[1721896975598,14.81,170.87,170.83,40.0]
[1721896976176,15.3192,170.95,170.83,40.0]
[1721896976385,14.81,170.93,170.88,20.0]
[1721896976587,14.81,170.92,170.88,20.0]
[1721896976804,14.81,170.91,170.88,20.0]
[1721896977487,14.81,170.9,170.88,20.0]
[1721896978194,14.81,170.9,170.86,40.0]
[1721896978497,14.81,170.91,170.88,20.0]
[1721896979693,14.81,170.92,170.88,20.0]
[1721896980487,14.81,170.92,170.88,40.0]
[1721896980682,14.81,170.91,170.88,40.0]
[1721896981095,14.81,170.89,170.88,20.0]
[1721896983940,6.2263,171.01,170.91,20.0]
[1721896984083,6.2263,171.01,170.93,20.0]
[1721896984084,14.81,170.95,170.93,20.0]
[1721896984282,14.81,170.96,170.93,20.0]
[1721896984791,14.81,170.95,170.94,45.0]
[1721896985511,59.24,171.0,170.95,20.0]
[1721896985806,14.81,170.96,170.95,20.0]
[1721896985979,14.81,170.96,170.93,20.0]
[1721896986181,35.8363,171.01,170.93,20.0]
[1721896986489,6.2263,171.01,170.93,20.0]
[1721896986697,35.8363,171.01,170.94,45.0]
[1721896987415,41.684,171.01,170.93,20.0]
[1721896988602,35.8363,171.01,170.93,20.0]
[1721896989588,35.8363,171.01,170.91,21.16985643]
[1721896989589,5.848,171.0,170.91,41.16985643]
[1721896990815,5.848,171.0,170.92,45.0]
[1721896991019,5.848,171.0,170.91,20.0]
[1721896991020,5.8483,170.99,170.91,20.0]
[1721896991310,5.8483,170.99,170.92,1.16997174]
[1721896991499,21.5785,171.0,170.91,20.0]
[1721896991690,21.5785,171.0,170.92,1.16991962]
[1721896991889,21.5786,171.0,170.92,1.16991962]
[1721896992302,15.7306,171.0,170.91,20.0]
[1721896992814,15.7306,171.0,170.93,20.0]
[1721896994890,21.5786,171.0,170.91,20.0]
[1721896995090,29.61,170.98,170.91,20.0]
[1721896995396,29.61,170.98,170.93,20.0]
[1721896995597,29.61,170.98,170.92,45.0]
[1721896995804,29.61,170.98,170.91,20.0]
[1721896996309,29.61,170.98,170.92,45.0]
[1721896997401,29.61,170.98,170.91,20.0]
[1721896997605,35.4589,170.98,170.89,20.0]
[1721896998427,29.61,170.95,170.86,20.0]
[1721896999690,35.4597,170.95,170.86,20.0]
[1721897002132,29.61,170.95,170.86,20.0]
[1721897002800,35.4599,170.95,170.84,40.0]
[1721897003016,29.61,170.95,170.85,65.0]
[1721897003201,29.61,170.95,170.85,45.0]
[1721897003407,5.85,170.94,170.85,45.0]
[1721897003624,35.4597,170.95,170.85,45.0]
[1721897004115,16.1614,170.94,170.85,45.0]
[1721897005134,22.0115,170.94,170.84,40.0]
[1721897005830,5.8503,170.93,170.84,20.0]
[1721897007102,22.0115,170.94,170.84,20.0]
[1721897008232,14.82,170.88,170.84,20.0]
[1721897010211,22.0115,170.94,170.84,20.0]
[1721897010417,14.82,170.88,170.84,20.0]
[1721897012334,14.82,170.87,170.83,8.68784386]
[1721897012634,14.82,170.87,170.84,40.0]
[1721897013010,14.82,170.87,170.84,20.0]
[1721897014339,14.82,170.87,170.84,40.0]
[1721897014637,14.82,170.87,170.84,20.0]
[1721897014823,14.82,170.86,170.84,20.0]
[1721897015023,14.82,170.86,170.83,20.0]
[1721897015919,14.82,170.87,170.83,20.0]
[1721897016124,14.82,170.87,170.84,20.0]
[1721897017126,6.461,170.92,170.84,20.0]
[1721897017320,6.461,170.92,170.84,34.82]
[1721897017516,14.82,170.89,170.84,54.82]
[1721897017924,14.82,170.87,170.83,20.0]
[1721897018128,14.82,170.86,170.83,20.0]
[1721897029536,14.82,170.85,170.82,7.22287614]
[1721897029734,14.82,170.85,170.8,9.70887863]
[1721897029926,14.82,170.84,170.79,8.69033005]
[1721897030543,14.82,170.84,170.79,1.17088388]
[1721897031454,14.82,170.83,170.78,7.22287614]
[1721897031649,21.2045,170.88,170.78,7.22287614]
[1721897031650,14.82,170.82,170.78,7.22287614]
[1721897035529,6.5282,170.85,170.78,7.22287614]
[1721897035739,14.82,170.81,170.78,7.22287614]
[1721897036145,14.82,170.82,170.78,7.22287614]
[1721897036475,14.82,170.82,170.78,27.22287614]
[1721897036634,14.82,170.82,170.79,45.0]
[1721897036838,15.3525,170.88,170.79,45.0]
[1721897037225,14.82,170.83,170.79,45.0]
[1721897037446,15.3525,170.88,170.78,27.22287614]
[1721897037659,15.3525,170.88,170.8,20.0]
[1721897037831,14.82,170.85,170.8,34.82]
[1721897038151,14.82,170.85,170.81,45.0]
[1721897038650,14.82,170.86,170.81,45.0]
[1721897039356,14.82,170.85,170.82,20.0]
[1721897040857,15.3525,170.88,170.82,20.0]
[1721897041057,14.82,170.85,170.82,20.0]
[1721897044280,21.6041,170.93,170.84,20.0]
[1721897044442,14.82,170.89,170.85,20.0]
[1721897044857,21.6041,170.93,170.86,20.0]
[1721897045340,14.82,170.87,170.83,8.69088329]
[1721897045546,14.82,170.84,170.81,8.69088329]
[1721897045763,14.82,170.82,170.8,8.69088329]
[1721897045937,14.82,170.81,170.8,8.69088329]
[1721897046138,14.82,170.81,170.78,8.69088329]
[1721897046840,29.0975,170.87,170.78,8.69088329]
[1721897046841,29.0975,170.87,170.78,28.69088329]
[1721897047053,14.82,170.82,170.79,28.69088329]
[1721897047263,23.2451,170.87,170.79,28.69088329]
[1721897047448,14.82,170.84,170.8,8.69088329]
[1721897047760,14.82,170.82,170.8,8.69088329]
[1721897047966,14.82,170.81,170.78,8.69088329]
[1721897048141,14.82,170.8,170.78,8.69088329]
[1721897048343,14.82,170.8,170.77,8.69088329]
[1721897048567,29.0975,170.87,170.77,28.69088329]
[1721897048767,14.82,170.8,170.77,28.69088329]
[1721897050160,29.0975,170.87,170.77,28.69088329]
[1721897050367,14.82,170.81,170.77,48.69088329]
[1721897050951,14.82,170.8,170.77,8.69088329]
[1721897051151,14.82,170.8,170.77,8.680531]
[1721897051371,14.82,170.8,170.76,8.68023477]
[1721897051751,14.82,170.8,170.77,8.68023477]
[1721897052271,14.82,170.84,170.8,20.0]
[1721897052965,14.82,170.85,170.82,20.0]
[1721897054048,15.3816,170.91,170.82,20.0]
[1721897054373,14.82,170.88,170.82,34.82]
[1721897054571,14.82,170.87,170.82,34.82]
[1721897054869,14.82,170.87,170.84,20.0]
[1721897055080,14.82,170.87,170.83,45.0]
[1721897055375,14.82,170.86,170.82,20.0]
[1721897055581,14.82,170.85,170.81,8.67193706]
[1721897056375,14.82,170.83,170.8,28.67193706]
[1721897056566,14.82,170.83,170.8,8.67193706]
[1721897056762,14.82,170.83,170.79,28.67193706]
[1721897057348,14.82,170.82,170.79,28.67193706]
[1721897057579,80.5129,170.91,170.8,34.82]
[1721897057772,80.5129,170.91,170.82,20.0]
[1721897057773,14.82,170.87,170.82,20.0]
[1721897057956,14.82,170.87,170.82,43.4912273]
[1721897058166,14.82,170.87,170.83,20.0]
[1721897058669,14.82,170.88,170.84,20.0]
[1721897059075,14.82,170.89,170.84,34.82]
[1721897059374,14.82,170.89,170.85,65.0]
[1721897059873,14.82,170.89,170.85,45.0]
[1721897060373,14.82,170.88,170.85,45.0]
[1721897060578,14.82,170.87,170.83,28.6712273]
[1721897060883,6.1025,170.92,170.84,85.0]
[1721897061056,6.1025,170.92,170.84,65.0]
[1721897061251,14.82,170.88,170.84,20.0]
[1721897061454,14.82,170.87,170.84,20.0]
[1721897061850,14.82,170.86,170.84,20.0]
[1721897062459,14.82,170.86,170.83,20.0]
[1721897062662,14.82,170.86,170.82,20.0]
[1721897064485,14.82,170.86,170.82,40.0]
[1721897065183,14.82,170.86,170.82,49.83594571]
[1721897065370,14.82,170.86,170.82,40.0]
[1721897065567,14.82,170.86,170.83,1.17066147]
[1721897065767,14.82,170.91,170.82,40.0]
[1721897065768,14.82,170.87,170.82,48.6653731]
[1721897065964,14.82,170.87,170.83,1.17056981]
[1721897066163,14.82,170.88,170.83,1.17056981]
[1721897066365,6.1025,170.92,170.82,63.4853731]
[1721897066571,14.82,170.88,170.82,63.4853731]
[1721897067454,14.82,170.88,170.82,63.48713214]
[1721897067673,14.82,170.87,170.82,63.48713214]
[1721897067887,14.82,170.88,170.83,46.17056994]
[1721897068059,14.82,170.88,170.83,66.17056994]
[1721897068261,14.82,170.88,170.82,63.48713214]
[1721897068462,14.82,170.87,170.82,63.48713214]
[1721897068869,14.82,170.86,170.82,28.66713214]
[1721897069068,14.82,170.87,170.82,54.82]
[1721897069383,14.82,170.88,170.83,15.99053435]
[1721897070184,14.82,170.88,170.83,14.82]
[1721897070389,15.5859,170.95,170.88,20.0]
[1721897070687,14.82,170.95,170.9,40.0]
[1721897071363,14.82,170.95,170.9,55.99002985]
[1721897071563,15.3806,171.0,170.91,14.82]
[1721897071882,14.82,170.94,170.88,40.0]
[1721897072281,14.82,170.93,170.88,54.82]
[1721897072581,14.82,170.94,170.89,1.17024536]
[1721897073095,14.82,170.94,170.88,54.82]
[1721897073274,14.82,170.94,170.89,1.17011563]
[1721897073486,14.82,170.94,170.9,20.0]
[1721897073791,14.82,170.94,170.88,54.82]
[1721897074168,14.82,170.93,170.88,54.82]
[1721897075768,14.82,170.93,170.89,20.0]
[1721897075975,14.82,170.94,170.9,20.0]
[1721897077186,14.82,170.94,170.89,34.82]
[1721897077485,14.82,170.94,170.9,45.0]
[1721897077694,14.82,170.93,170.9,45.0]
[1721897077899,14.82,170.93,170.89,20.0]
[1721897080909,14.82,170.94,170.89,20.0]
[1721897083384,14.82,170.93,170.87,14.82]
[1721897083685,14.82,170.9,170.84,34.82]
[1721897084101,14.82,170.89,170.84,34.82]
[1721897085400,14.82,170.9,170.84,34.82]
[1721897085608,14.82,170.9,170.84,54.82]
[1721897087990,14.82,170.89,170.84,54.82]
[1721897089212,22.3187,170.94,170.84,54.82]
[1721897089505,14.82,170.89,170.84,54.82]
[1721897089807,14.82,170.9,170.84,54.82]
[1721897089982,14.82,170.91,170.85,14.82]
[1721897090484,14.82,170.91,170.86,34.82]
[1721897090905,14.82,170.92,170.86,54.82]
[1721897091084,14.82,170.94,170.89,14.82]
[1721897091290,14.82,170.94,170.88,54.82]
[1721897091596,14.82,170.94,170.89,45.0]
[1721897092104,14.82,170.93,170.86,40.0]
[1721897092304,14.82,170.93,170.87,79.82]
[1721897093398,14.82,170.93,170.88,14.82]
[1721897095891,6.1865,170.96,170.88,14.82]
[1721897096205,14.82,170.93,170.88,14.82]
[1721897097577,6.1865,170.96,170.89,20.0]
[1721897097810,14.82,170.94,170.89,54.82]
[1721897098105,14.82,170.96,170.91,34.82]
[1721897099394,14.82,170.96,170.91,54.82]
[1721897099785,65.7695,171.0,170.91,54.82]
[1721897099984,14.82,170.98,170.93,54.82]
[1721897100511,14.82,170.97,170.92,14.82]
[1721897100694,33.8638,171.03,170.89,40.0]
[1721897100695,14.82,170.96,170.93,20.0]
[1721897100888,14.82,170.97,170.93,20.0]
[1721897101607,14.82,170.97,170.92,20.0]
[1721897101911,14.82,170.97,170.92,34.82]
[1721897102113,5.8478,171.01,170.92,1.16995413]
[1721897102298,14.82,170.95,170.9,34.82]
[1721897102502,14.82,170.96,170.91,65.0]
[1721897102808,14.82,170.96,170.91,79.82]
[1721897103202,14.82,170.96,170.89,20.0]
[1721897103408,16.2738,171.03,170.88,28.65074205]
[1721897103409,14.82,170.94,170.88,28.65074205]
[1721897103598,5.8482,171.0,170.9,14.82]
[1721897103906,14.82,170.93,170.89,20.0]
[1721897104502,14.82,170.92,170.89,20.0]
[1721897104796,14.82,170.92,170.88,20.0]
[1721897105487,14.82,170.92,170.86,25.74979881]
[1721897105488,14.82,170.92,170.87,20.0]
[1721897105885,14.82,170.91,170.85,28.65074205]
[1721897106090,21.2127,170.99,170.83,15.9479]
[1721897106091,14.82,170.87,170.83,28.65074205]
[1721897106292,14.82,170.87,170.82,10.97491511]
[1721897106614,14.82,170.87,170.82,14.82]
[1721897106816,14.82,170.83,170.81,8.65074205]
[1721897107023,14.82,170.83,170.78,32.63304951]
[1721897107309,104.28,170.91,170.79,14.82]
[1721897107310,14.82,170.85,170.79,14.82]
[1721897107712,14.82,170.84,170.79,14.82]
[1721897108087,17.59,170.89,170.78,17.82113572]
[1721897108088,14.82,170.83,170.78,17.82113572]
[1721897108291,14.82,170.82,170.77,10.89355848]
[1721897108509,23.4424,170.87,170.77,10.89355848]
[1721897108510,17.59,170.87,170.77,10.89355848]
[1721897108707,14.82,170.82,170.77,17.82686551]
[1721897109002,17.59,170.89,170.78,8.65882826]
[1721897109214,6.3836,170.92,170.78,8.65882826]
[1721897109215,14.82,170.83,170.78,8.65882826]
[1721897109528,14.82,170.83,170.77,32.64686551]
[1721897109991,23.4422,170.88,170.78,20.0]
[1721897110192,14.82,170.83,170.78,20.0]
[1721897111819,14.82,170.82,170.78,20.0]
[1721897112518,14.82,170.83,170.78,20.0]
[1721897113206,14.82,170.79,170.75,1.01885259]
[1721897113394,14.82,170.78,170.71,20.0]
[1721897113593,14.82,170.78,170.71,29.16948476]
[1721897113891,14.82,170.78,170.73,14.82]
[1721897114421,6.0254,170.81,170.71,29.16948476]
[1721897114422,14.82,170.76,170.71,9.16948476]
[1721897114622,14.82,170.73,170.68,14.82]
[1721897114918,14.82,170.75,170.7,14.82]
[1721897115097,14.82,170.79,170.74,14.82]